Workbook

Sheet Feuil1 (hidden)
C1: FC1 40 | D1: FC1 44 | E1: FC1 48 | F1: FC1 53 | G1: FC1 58 | H1: FC1 63 | I1: FC1 69 | J1: FC1 +69 | K1: FC2 44 | L1: FC2 48 | M1: FC2 53 | N1: FC2 58 | O1: FC2 63 | P1: FC2 69 | Q1: FC2 +69 | R1: FJ48 | S1: FJ53 | T1: FJ58 | U1: FJ63 | V1: FJ69 | W1: FJ75 | X1: FJ+75 | Y1: FS48 | Z1: FS53 | AA1: FS58 | AB1: FS63 | AC1: FS69 | AD1: FS75 | AE1: FS+75 | AF1: C1 45 | AG1: C1 50 | AH1: C1 56 | AI1: C1 62 | AJ1: C1 69 | AK1: C1 77 | AL1: C1 85 | AM1: C1 94 | AN1: C1 +94 | AO1: C2 50 | AP1: C2 56 | AQ1: C2 62 | AR1: C2 69 | AS1: C2 77 | AT1: C2 85 | AU1: C2 94 | AV1: C2 +94 | AW1: J56 | AX1: J62 | AY1: J69 | AZ1: J77 | BA1: J85 | BB1: J94 | BC1: J105 | BD1: J+105 | BE1: S56 | BF1: S62 | BG1: S69 | BH1: S77 | BI1: S85 | BJ1: S94 | BK1: S105 | BL1: S+105
B2: DEBUTANT | C2: 20 | D2: 25 | E2: 30 | F2: 35 | G2: 40 | H2: 45 | I2: 50 | J2: 60 | K2: 30 | L2: 35 | M2: 45 | N2: 50 | O2: 55 | P2: 60 | Q2: 70 | R2: 45 | S2: 55 | T2: 60 | U2: 65 | V2: 70 | W2: 80 | X2: 90 | Y2: 55 | Z2: 65 | AA2: 70 | AB2: 75 | AC2: 80 | AD2: 95 | AE2: 100 | AF2: 35 | AG2: 40 | AH2: 50 | AI2: 75 | AJ2: 85 | AK2: 90 | AL2: 100 | AM2: 110 | AN2: 120 | AO2: 45 | AP2: 65 | AQ2: 85 | AR2: 95 | AS2: 110 | AT2: 120 | AU2: 125 | AV2: 135 | AW2: 80 | AX2: 90 | AY2: 110 | AZ2: 130 | BA2: 145 | BB2: 150 | BC2: 155 | BD2: 165 | BE2: 95 | BF2: 120 | BG2: 130 | BH2: 150 | BI2: 165 | BJ2: 170 | BK2: 175 | BL2: 185
B3: DEPARTEMENTAL | C3: 25 | D3: 30 | E3: 35 | F3: 45 | G3: 50 | H3: 55 | I3: 60 | J3: 70 | K3: 40 | L3: 45 | M3: 55 | N3: 60 | O3: 65 | P3: 70 | Q3: 80 | R3: 55 | S3: 65 | T3: 70 | U3: 75 | V3: 80 | W3: 95 | X3: 100 | Y3: 65 | Z3: 75 | AA3: 80 | AB3: 85 | AC3: 90 | AD3: 105 | AE3: 110 | AF3: 50 | AG3: 55 | AH3: 70 | AI3: 95 | AJ3: 105 | AK3: 110 | AL3: 120 | AM3: 130 | AN3: 140 | AO3: 65 | AP3: 85 | AQ3: 105 | AR3: 115 | AS3: 130 | AT3: 140 | AU3: 145 | AV3: 155 | AW3: 100 | AX3: 120 | AY3: 130 | AZ3: 150 | BA3: 165 | BB3: 170 | BC3: 175 | BD3: 185 | BE3: 115 | BF3: 135 | BG3: 150 | BH3: 170 | BI3: 185 | BJ3: 190 | BK3: 195 | BL3: 205
B4: REGIONAL | C4: 35 | D4: 40 | E4: 45 | F4: 55 | G4: 60 | H4: 65 | I4: 70 | J4: 80 | K4: 50 | L4: 55 | M4: 65 | N4: 70 | O4: 75 | P4: 80 | Q4: 95 | R4: 65 | S4: 75 | T4: 80 | U4: 85 | V4: 90 | W4: 105 | X4: 110 | Y4: 75 | Z4: 85 | AA4: 90 | AB4: 95 | AC4: 105 | AD4: 115 | AE4: 125 | AF4: 60 | AG4: 65 | AH4: 85 | AI4: 105 | AJ4: 115 | AK4: 130 | AL4: 140 | AM4: 145 | AN4: 155 | AO4: 80 | AP4: 100 | AQ4: 120 | AR4: 130 | AS4: 150 | AT4: 160 | AU4: 165 | AV4: 175 | AW4: 115 | AX4: 135 | AY4: 150 | AZ4: 170 | BA4: 185 | BB4: 190 | BC4: 195 | BD4: 205 | BE4: 130 | BF4: 150 | BG4: 170 | BH4: 190 | BI4: 205 | BJ4: 215 | BK4: 220 | BL4: 225
B5: INTERREGIONAL | C5: 45 | D5: 50 | E5: 55 | F5: 65 | G5: 70 | H5: 75 | I5: 80 | J5: 95 | K5: 60 | L5: 65 | M5: 75 | N5: 80 | O5: 85 | P5: 90 | Q5: 105 | R5: 75 | S5: 85 | T5: 90 | U5: 95 | V5: 105 | W5: 115 | X5: 125 | Y5: 85 | Z5: 95 | AA5: 100 | AB5: 110 | AC5: 120 | AD5: 130 | AE5: 140 | AF5: 75 | AG5: 80 | AH5: 100 | AI5: 120 | AJ5: 130 | AK5: 150 | AL5: 160 | AM5: 165 | AN5: 175 | AO5: 95 | AP5: 115 | AQ5: 135 | AR5: 150 | AS5: 170 | AT5: 180 | AU5: 185 | AV5: 195 | AW5: 130 | AX5: 150 | AY5: 170 | AZ5: 190 | BA5: 205 | BB5: 215 | BC5: 220 | BD5: 225 | BE5: 145 | BF5: 170 | BG5: 190 | BH5: 210 | BI5: 225 | BJ5: 235 | BK5: 245 | BL5: 250
B6: FEDERAL | C6: 50 | D6: 60 | E6: 65 | F6: 75 | G6: 80 | H6: 85 | I6: 90 | J6: 105 | K6: 70 | L6: 75 | M6: 85 | N6: 90 | O6: 95 | P6: 105 | Q6: 115 | R6: 85 | S6: 95 | T6: 100 | U6: 110 | V6: 120 | W6: 130 | X6: 140 | Y6: 95 | Z6: 105 | AA6: 115 | AB6: 125 | AC6: 135 | AD6: 145 | AE6: 150 | AF6: 90 | AG6: 95 | AH6: 115 | AI6: 135 | AJ6: 150 | AK6: 170 | AL6: 180 | AM6: 185 | AN6: 195 | AO6: 110 | AP6: 130 | AQ6: 150 | AR6: 170 | AS6: 185 | AT6: 200 | AU6: 210 | AV6: 220 | AW6: 145 | AX6: 170 | AY6: 190 | AZ6: 210 | BA6: 225 | BB6: 235 | BC6: 245 | BD6: 250 | BE6: 170 | BF6: 190 | BG6: 220 | BH6: 240 | BI6: 250 | BJ6: 260 | BK6: 270 | BL6: 280
B7: NATIONAL | C7: 60 | D7: 70 | E7: 75 | F7: 85 | G7: 90 | H7: 95 | I7: 105 | J7: 115 | K7: 80 | L7: 85 | M7: 95 | N7: 100 | O7: 110 | P7: 120 | Q7: 130 | R7: 95 | S7: 105 | T7: 115 | U7: 125 | V7: 135 | W7: 145 | X7: 150 | Y7: 110 | Z7: 120 | AA7: 130 | AB7: 140 | AC7: 150 | AD7: 160 | AE7: 170 | AF7: 105 | AG7: 110 | AH7: 130 | AI7: 150 | AJ7: 170 | AK7: 185 | AL7: 200 | AM7: 210 | AN7: 220 | AO7: 120 | AP7: 145 | AQ7: 170 | AR7: 190 | AS7: 200 | AT7: 220 | AU7: 225 | AV7: 235 | AW7: 170 | AX7: 190 | AY7: 220 | AZ7: 240 | BA7: 250 | BB7: 260 | BC7: 270 | BD7: 280 | BE7: 190 | BF7: 210 | BG7: 240 | BH7: 265 | BI7: 280 | BJ7: 290 | BK7: 300 | BL7: 310
B8: INTERNATIONAL B | C8: 70 | D8: 80 | E8: 85 | F8: 95 | G8: 100 | H8: 110 | I8: 120 | J8: 130 | K8: 90 | L8: 95 | M8: 105 | N8: 115 | O8: 125 | P8: 135 | Q8: 145 | R8: 110 | S8: 120 | T8: 130 | U8: 140 | V8: 150 | W8: 160 | X8: 170 | Y8: 125 | Z8: 140 | AA8: 150 | AB8: 160 | AC8: 170 | AD8: 180 | AE8: 190 | AF8: 115 | AG8: 120 | AH8: 145 | AI8: 170 | AJ8: 190 | AK8: 200 | AL8: 220 | AM8: 225 | AN8: 235 | AO8: 135 | AP8: 170 | AQ8: 190 | AR8: 210 | AS8: 220 | AT8: 240 | AU8: 250 | AV8: 260 | AW8: 190 | AX8: 210 | AY8: 240 | AZ8: 260 | BA8: 280 | BB8: 290 | BC8: 300 | BD8: 310 | BE8: 210 | BF8: 230 | BG8: 260 | BH8: 285 | BI8: 300 | BJ8: 310 | BK8: 325 | BL8: 330
B9: INTERNATIONAL A | C9: 80 | D9: 90 | E9: 95 | F9: 105 | G9: 115 | H9: 125 | I9: 135 | J9: 145 | K9: 100 | L9: 110 | M9: 120 | N9: 130 | O9: 140 | P9: 150 | Q9: 160 | R9: 125 | S9: 135 | T9: 150 | U9: 160 | V9: 170 | W9: 180 | X9: 190 | Y9: 140 | Z9: 160 | AA9: 170 | AB9: 180 | AC9: 190 | AD9: 195 | AE9: 210 | AF9: 130 | AG9: 135 | AH9: 170 | AI9: 190 | AJ9: 210 | AK9: 220 | AL9: 240 | AM9: 250 | AN9: 260 | AO9: 150 | AP9: 190 | AQ9: 210 | AR9: 230 | AS9: 250 | AT9: 260 | AU9: 280 | AV9: 280 | AW9: 210 | AX9: 230 | AY9: 250 | AZ9: 285 | BA9: 300 | BB9: 310 | BC9: 325 | BD9: 330 | BE9: 225 | BF9: 255 | BG9: 275 | BH9: 305 | BI9: 325 | BJ9: 330 | BK9: 345 | BL9: 355
B10: OLYMPIQUE | C10: 1000 | D10: 1000 | E10: 1000 | F10: 1000 | G10: 1000 | H10: 1000 | I10: 1000 | J10: 1000 | K10: 1000 | L10: 1000 | M10: 1000 | N10: 1000 | O10: 1000 | P10: 1000 | Q10: 1000 | R10: 1000 | S10: 1000 | T10: 1000 | U10: 1000 | V10: 1000 | W10: 1000 | X10: 1000 | Y10: 155 | Z10: 175 | AA10: 190 | AB10: 200 | AC10: 205 | AD10: 210 | AE10: 225 | AF10: 1000 | AG10: 1000 | AH10: 1000 | AI10: 1000 | AJ10: 1000 | AK10: 1000 | AL10: 10000 | AM10: 1000 | AN10: 1000 | AO10: 1000 | AP10: 1000 | AQ10: 1000 | AR10: 1000 | AS10: 1000 | AT10: 10000 | AU10: 1000 | AV10: 1000 | AW10: 1000 | AX10: 1000 | AY10: 1000 | AZ10: 10000 | BA10: 1000 | BB10: 1000 | BC10: 1000 | BD10: 10000 | BE10: 240 | BF10: 270 | BG10: 290 | BH10: 320 | BI10: 345 | BJ10: 355 | BK10: 365 | BL10: 375
B11: MINIME | C11: CADET | D11: CADET | E11: JUNIOR | F11: SENIOR | H11: MINIME | I11: CADETTE | J11: CADETTE | K11: JUNIOR | L11: SENIOR
A12: 20.01 | B12: NON | C12: C1 45 | D12: C2 50 | E12: J56 | F12: S56 | G12: 20.01 | H12: NON | I12: FC1 40 | J12: FC2 44 | K12: FJ48 | L12: FS48
A13: 34.01 | B13: NON | C13: C1 45 | D13: C2 50 | E13: J56 | F13: S56 | G13: 30.01 | H13: NON | I13: FC1 40 | J13: FC2 44 | K13: FJ48 | L13: FS48
A14: 38.01 | B14: NON | C14: C1 45 | D14: C2 50 | E14: J56 | F14: S56 | G14: 35.01 | H14: NON | I14: FC1 40 | J14: FC2 44 | K14: FJ48 | L14: FS48
A15: 40.01 | B15: NON | C15: C1 45 | D15: C2 50 | E15: J56 | F15: S56 | G15: 36.01 | H15: NON | I15: FC1 40 | J15: FC2 44 | K15: FJ48 | L15: FS48
A16: 45.01 | B16: NON | C16: C1 50 | D16: C2 50 | E16: J56 | F16: S56 | G16: 40.01 | H16: NON | I16: FC1 44 | J16: FC2 44 | K16: FJ48 | L16: FS48
A17: 50.01 | B17: NON | C17: C1 56 | D17: C2 56 | E17: J56 | F17: S56 | G17: 44.01 | H17: NON | I17: FC1 48 | J17: FC2 48 | K17: FJ48 | L17: FS48
A18: 52.05 | B18: NON | C18: C1 56 | D18: C2 56 | E18: J56 | F18: S56 | G18: 48.01 | H18: NON | I18: FC1 53 | J18: FC2 53 | K18: FJ53 | L18: FS53
A19: 56.01 | B19: NON | C19: C1 62 | D19: C2 62 | E19: J62 | F19: S62 | G19: 53.01 | H19: NON | I19: FC1 58 | J19: FC2 58 | K19: FJ58 | L19: FS58
A20: 62.01 | B20: NON | C20: C1 69 | D20: C2 69 | E20: J69 | F20: S69 | G20: 58.01 | H20: NON | I20: FC1 63 | J20: FC2 63 | K20: FJ63 | L20: FS63
A21: 69.01 | B21: NON | C21: C1 77 | D21: C2 77 | E21: J77 | F21: S77 | G21: 63.01 | H21: NON | I21: FC1 69 | J21: FC2 69 | K21: FJ69 | L21: FS69
A22: 77.01 | B22: NON | C22: C1 85 | D22: C2 85 | E22: J85 | F22: S85 | G22: 69.01 | H22: NON | I22: FC1 +69 | J22: FC2 +69 | K22: FJ75 | L22: FS75
A23: 85.01 | B23: NON | C23: C1 94 | D23: C2 94 | E23: J94 | F23: S94 | G23: 75.01 | H23: NON | I23: FC1 +69 | J23: FC2 +69 | K23: FJ+75 | L23: FS+75
A24: 94.01 | B24: NON | C24: C1 +94 | D24: C2 +94 | E24: J105 | F24: S105 | G24: 110 | H24: NON | I24: FC1 +69 | J24: FC2 +69 | K24: FJ+75 | L24: FS+75
A25: 105.01 | B25: NON | C25: C1 +94 | D25: C2 +94 | E25: J+105 | F25: S+105 | G25: 140 | H25: NON | I25: FC1 +69 | J25: FC2 +69 | K25: FJ+75 | L25: FS+75
A26: 110 | B26: NON | C26: C1 +94 | D26: C2 +94 | E26: J+105 | F26: S+105
A27: 120 | B27: NON | C27: C1 +94 | D27: C2 +94 | E27: J+105 | F27: S+105
A28: 130 | B28: NON | C28: C1 +94 | D28: C2 +94 | E28: J+105 | F28: S+105
A29: 140 | B29: NON | C29: C1 +94 | D29: C2 +94 | E29: J+105 | F29: S+105

Sheet CHAMP HOM
E1: CHAMPIONNAT DE FRANCE DES CLUBS D'HALTEROPHILIE MASCULIN 2016 2017
S2: JOURNEE :
G3: DIVISION : | M3: Lieu : | T3: DATE :
E4: ► CLUB :
A5: SEXE | B5: ZONE | C5: REG. | D5: CL. | E5: LICENCE | F5: NOMS | G5: Prénoms | H5: AN | I5: POIDS | J5: CLUB | K5: NAT | L5: 1 | M5: 2 | N5: 3 | O5: ARR | P5: 1 | Q5: 2 | R5: 3 | S5: EP-J | T5: Total | U5: Points | V5: SERIE | X5: Catég | Y5: IWF | AB5: DEB | AC5: DEP + | AD5: REG + | AE5: IRG + | AF5: FED + | AG5: NAT + | AH5: INTB + | AI5: INTA + | AJ5: OLY +
A6: H | H6: 1996 | I6: 75 | J6: =F4 ->  | L6: -80 | M6: -80 | N6: -80 | O6: =IF(H6="","",IF(MAXA(L6:N6)<=0,0,MAXA(L6:N6))) -> 0 | P6: 100 | S6: =IF(H6="","",IF(MAXA(P6:R6)<=0,0,MAXA(P6:R6))) -> 100 | T6: =IF(I6="","",O6+S6) -> 100 | U6: =T6-I6*2 -> -50 | V6: =IF(H6="","",AQ6) -> DEB | W6: =IF(AJ6>=0,AJ6,IF(AI6>=0,AI6,IF(AH6>=0,AH6,IF(AG6>=0,AG6,IF(AF6>=0,AF6,IF(AE6>=0,AE6,IF(AD6>=0,AD6,IF(AC6>=0,AC6,AB6)))))))) -> -50 | X6: =IF(I6="","",IF(A6="H",IF(OR(H6="SEN",H6<1997),VLOOKUP(I6,Feuil1!$A$11:$G$29,6),IF(AND(H6>1996,H6<2000),VLOOKUP(I6,Feuil1!$A$11:$G$29,5),IF(AND(H6>1999,H6<2002),VLOOKUP(I6,Feuil1!$A$11:$G$29,4),IF(AND(H6>2001,H6<2004),VLOOKUP(I6,Feuil1!$A$11:$G$29,3),VLOOKUP(I6,Feuil1!$A$11:$G$29,2))))),IF(OR(H6="SEN",H6<1997),VLOOKUP(I6,Feuil1!$G$11:$L$25,6),IF(AND(H6>1996,H6<2000),VLOOKUP(I6,Feuil1!$G$11:$L$25,5),IF(AND(H6>1999,H6<2002),VLOOKUP(I6,Feuil1!$G$11:$L$25,4),IF(AND(H6>2001,H6<2004),VLOOKUP(I6,Feuil1!$G$11:$L$25,3),VLOOKUP(I6,Feuil1!$G$11:$L$25,2))))))) -> S77 | Y6: =IF(I6="","",IF(A6="H",10^(0.794358141*LOG(I6/174.393)^2)*T6,IF(A6="F",10^(0.89726074*LOG(I6/148.026)^2)*T6,""))) -> 127.8442548 | AB6: =T6-HLOOKUP(X6,Feuil1!$C$1:$BL$10,2,FALSE) -> -50 | AC6: =T6-HLOOKUP(X6,Feuil1!$C$1:$BL$10,3,FALSE) -> -70 | AD6: =T6-HLOOKUP(X6,Feuil1!$C$1:$BL$10,4,FALSE) -> -90 | AE6: =T6-HLOOKUP(X6,Feuil1!$C$1:$BL$10,5,FALSE) -> -110 | AF6: =T6-HLOOKUP(X6,Feuil1!$C$1:$BL$10,6,FALSE) -> -140 | AG6: =T6-HLOOKUP(X6,Feuil1!$C$1:$BL$10,7,FALSE) -> -165 | AH6: =T6-HLOOKUP(X6,Feuil1!$C$1:$BL$10,8,FALSE) -> -185 | AI6: =T6-HLOOKUP(X6,Feuil1!$C$1:$BL$10,9,FALSE) -> -205 | AJ6: =T6-HLOOKUP(X6,Feuil1!$C$1:$BL$10,10,FALSE) -> -220 | AQ6: =IF(AJ6>=0,$AJ$5,IF(AI6>=0,$AI$5,IF(AH6>=0,$AH$5,IF(AG6>=0,$AG$5,IF(AF6>=0,$AF$5,IF(AE6>=0,$AE$5,IF(AD6>=0,$AD$5,IF(AC6>=0,$AC$5,$AB$5)))))))) -> DEB
A7: H | H7: 1999 | I7: 75 | J7: =F4 ->  | L7: 50 | O7: =IF(H7="","",IF(MAXA(L7:N7)<=0,0,MAXA(L7:N7))) -> 50 | P7: 65 | S7: =IF(H7="","",IF(MAXA(P7:R7)<=0,0,MAXA(P7:R7))) -> 65 | T7: =IF(I7="","",O7+S7) -> 115 | U7: =T7-I7*2 -> -35 | V7: =IF(H7="","",AQ7) -> DEB | W7: =IF(AJ7>=0,AJ7,IF(AI7>=0,AI7,IF(AH7>=0,AH7,IF(AG7>=0,AG7,IF(AF7>=0,AF7,IF(AE7>=0,AE7,IF(AD7>=0,AD7,IF(AC7>=0,AC7,AB7)))))))) -> -15 | X7: =IF(I7="","",IF(A7="H",IF(OR(H7="SEN",H7<1997),VLOOKUP(I7,Feuil1!$A$11:$G$29,6),IF(AND(H7>1996,H7<2000),VLOOKUP(I7,Feuil1!$A$11:$G$29,5),IF(AND(H7>1999,H7<2002),VLOOKUP(I7,Feuil1!$A$11:$G$29,4),IF(AND(H7>2001,H7<2004),VLOOKUP(I7,Feuil1!$A$11:$G$29,3),VLOOKUP(I7,Feuil1!$A$11:$G$29,2))))),IF(OR(H7="SEN",H7<1997),VLOOKUP(I7,Feuil1!$G$11:$L$25,6),IF(AND(H7>1996,H7<2000),VLOOKUP(I7,Feuil1!$G$11:$L$25,5),IF(AND(H7>1999,H7<2002),VLOOKUP(I7,Feuil1!$G$11:$L$25,4),IF(AND(H7>2001,H7<2004),VLOOKUP(I7,Feuil1!$G$11:$L$25,3),VLOOKUP(I7,Feuil1!$G$11:$L$25,2))))))) -> J77 | Y7: =IF(I7="","",IF(A7="H",10^(0.794358141*LOG(I7/174.393)^2)*T7,IF(A7="F",10^(0.89726074*LOG(I7/148.026)^2)*T7,""))) -> 147.0208931 | AB7: =T7-HLOOKUP(X7,Feuil1!$C$1:$BL$10,2,FALSE) -> -15 | AC7: =T7-HLOOKUP(X7,Feuil1!$C$1:$BL$10,3,FALSE) -> -35 | AD7: =T7-HLOOKUP(X7,Feuil1!$C$1:$BL$10,4,FALSE) -> -55 | AE7: =T7-HLOOKUP(X7,Feuil1!$C$1:$BL$10,5,FALSE) -> -75 | AF7: =T7-HLOOKUP(X7,Feuil1!$C$1:$BL$10,6,FALSE) -> -95 | AG7: =T7-HLOOKUP(X7,Feuil1!$C$1:$BL$10,7,FALSE) -> -125 | AH7: =T7-HLOOKUP(X7,Feuil1!$C$1:$BL$10,8,FALSE) -> -145 | AI7: =T7-HLOOKUP(X7,Feuil1!$C$1:$BL$10,9,FALSE) -> -170 | AJ7: =T7-HLOOKUP(X7,Feuil1!$C$1:$BL$10,10,FALSE) -> -9885 | AQ7: =IF(AJ7>=0,$AJ$5,IF(AI7>=0,$AI$5,IF(AH7>=0,$AH$5,IF(AG7>=0,$AG$5,IF(AF7>=0,$AF$5,IF(AE7>=0,$AE$5,IF(AD7>=0,$AD$5,IF(AC7>=0,$AC$5,$AB$5)))))))) -> DEB
A8: H | H8: 2000 | I8: 75 | J8: =F4 ->  | L8: 100 | O8: 100 | P8: 110 | S8: 110 | T8: 210 | U8: 60 | V8: NAT + | W8: 10 | X8: =IF(I8="","",IF(A8="H",IF(OR(H8="SEN",H8<1997),VLOOKUP(I8,Feuil1!$A$11:$G$29,6),IF(AND(H8>1996,H8<2000),VLOOKUP(I8,Feuil1!$A$11:$G$29,5),IF(AND(H8>1999,H8<2002),VLOOKUP(I8,Feuil1!$A$11:$G$29,4),IF(AND(H8>2001,H8<2004),VLOOKUP(I8,Feuil1!$A$11:$G$29,3),VLOOKUP(I8,Feuil1!$A$11:$G$29,2))))),IF(OR(H8="SEN",H8<1997),VLOOKUP(I8,Feuil1!$G$11:$L$25,6),IF(AND(H8>1996,H8<2000),VLOOKUP(I8,Feuil1!$G$11:$L$25,5),IF(AND(H8>1999,H8<2002),VLOOKUP(I8,Feuil1!$G$11:$L$25,4),IF(AND(H8>2001,H8<2004),VLOOKUP(I8,Feuil1!$G$11:$L$25,3),VLOOKUP(I8,Feuil1!$G$11:$L$25,2))))))) -> C2 77 | Y8: 268.4729352 | Z8: =V12 -> 1188.95157 | AB8: =T8-HLOOKUP(X8,Feuil1!$C$1:$BL$10,2,FALSE) -> 100 | AC8: =T8-HLOOKUP(X8,Feuil1!$C$1:$BL$10,3,FALSE) -> 80 | AD8: =T8-HLOOKUP(X8,Feuil1!$C$1:$BL$10,4,FALSE) -> 60 | AE8: =T8-HLOOKUP(X8,Feuil1!$C$1:$BL$10,5,FALSE) -> 40 | AF8: =T8-HLOOKUP(X8,Feuil1!$C$1:$BL$10,6,FALSE) -> 25 | AG8: =T8-HLOOKUP(X8,Feuil1!$C$1:$BL$10,7,FALSE) -> 10 | AH8: =T8-HLOOKUP(X8,Feuil1!$C$1:$BL$10,8,FALSE) -> -10 | AI8: =T8-HLOOKUP(X8,Feuil1!$C$1:$BL$10,9,FALSE) -> -40 | AJ8: =T8-HLOOKUP(X8,Feuil1!$C$1:$BL$10,10,FALSE) -> -790 | AQ8: NAT +
A9: H | H9: 2002 | I9: 75 | J9: =F4 ->  | L9: 110 | O9: 110 | P9: 130 | S9: 130 | T9: 240 | U9: 90 | V9: INTA + | W9: 20 | X9: =IF(I9="","",IF(A9="H",IF(OR(H9="SEN",H9<1997),VLOOKUP(I9,Feuil1!$A$11:$G$29,6),IF(AND(H9>1996,H9<2000),VLOOKUP(I9,Feuil1!$A$11:$G$29,5),IF(AND(H9>1999,H9<2002),VLOOKUP(I9,Feuil1!$A$11:$G$29,4),IF(AND(H9>2001,H9<2004),VLOOKUP(I9,Feuil1!$A$11:$G$29,3),VLOOKUP(I9,Feuil1!$A$11:$G$29,2))))),IF(OR(H9="SEN",H9<1997),VLOOKUP(I9,Feuil1!$G$11:$L$25,6),IF(AND(H9>1996,H9<2000),VLOOKUP(I9,Feuil1!$G$11:$L$25,5),IF(AND(H9>1999,H9<2002),VLOOKUP(I9,Feuil1!$G$11:$L$25,4),IF(AND(H9>2001,H9<2004),VLOOKUP(I9,Feuil1!$G$11:$L$25,3),VLOOKUP(I9,Feuil1!$G$11:$L$25,2))))))) -> C1 77 | Y9: 306.8262116 | Z9: =V22 -> 1282.564783 | AB9: =T9-HLOOKUP(X9,Feuil1!$C$1:$BL$10,2,FALSE) -> 150 | AC9: =T9-HLOOKUP(X9,Feuil1!$C$1:$BL$10,3,FALSE) -> 130 | AD9: =T9-HLOOKUP(X9,Feuil1!$C$1:$BL$10,4,FALSE) -> 110 | AE9: =T9-HLOOKUP(X9,Feuil1!$C$1:$BL$10,5,FALSE) -> 90 | AF9: =T9-HLOOKUP(X9,Feuil1!$C$1:$BL$10,6,FALSE) -> 70 | AG9: =T9-HLOOKUP(X9,Feuil1!$C$1:$BL$10,7,FALSE) -> 55 | AH9: =T9-HLOOKUP(X9,Feuil1!$C$1:$BL$10,8,FALSE) -> 40 | AI9: =T9-HLOOKUP(X9,Feuil1!$C$1:$BL$10,9,FALSE) -> 20 | AJ9: =T9-HLOOKUP(X9,Feuil1!$C$1:$BL$10,10,FALSE) -> -760 | AQ9: INTA +
A10: H | H10: 1995 | I10: 75 | J10: =F4 ->  | L10: 120 | O10: 120 | P10: 145 | S10: 145 | T10: 265 | U10: 115 | V10: NAT + | W10: 0 | X10: =IF(I10="","",IF(A10="H",IF(OR(H10="SEN",H10<1997),VLOOKUP(I10,Feuil1!$A$11:$G$29,6),IF(AND(H10>1996,H10<2000),VLOOKUP(I10,Feuil1!$A$11:$G$29,5),IF(AND(H10>1999,H10<2002),VLOOKUP(I10,Feuil1!$A$11:$G$29,4),IF(AND(H10>2001,H10<2004),VLOOKUP(I10,Feuil1!$A$11:$G$29,3),VLOOKUP(I10,Feuil1!$A$11:$G$29,2))))),IF(OR(H10="SEN",H10<1997),VLOOKUP(I10,Feuil1!$G$11:$L$25,6),IF(AND(H10>1996,H10<2000),VLOOKUP(I10,Feuil1!$G$11:$L$25,5),IF(AND(H10>1999,H10<2002),VLOOKUP(I10,Feuil1!$G$11:$L$25,4),IF(AND(H10>2001,H10<2004),VLOOKUP(I10,Feuil1!$G$11:$L$25,3),VLOOKUP(I10,Feuil1!$G$11:$L$25,2))))))) -> S77 | Y10: 338.7872753 | Z10: =V32 -> 1270.614434 | AB10: =T10-HLOOKUP(X10,Feuil1!$C$1:$BL$10,2,FALSE) -> 115 | AC10: =T10-HLOOKUP(X10,Feuil1!$C$1:$BL$10,3,FALSE) -> 95 | AD10: =T10-HLOOKUP(X10,Feuil1!$C$1:$BL$10,4,FALSE) -> 75 | AE10: =T10-HLOOKUP(X10,Feuil1!$C$1:$BL$10,5,FALSE) -> 55 | AF10: =T10-HLOOKUP(X10,Feuil1!$C$1:$BL$10,6,FALSE) -> 25 | AG10: =T10-HLOOKUP(X10,Feuil1!$C$1:$BL$10,7,FALSE) -> 0 | AH10: =T10-HLOOKUP(X10,Feuil1!$C$1:$BL$10,8,FALSE) -> -20 | AI10: =T10-HLOOKUP(X10,Feuil1!$C$1:$BL$10,9,FALSE) -> -40 | AJ10: =T10-HLOOKUP(X10,Feuil1!$C$1:$BL$10,10,FALSE) -> -55 | AQ10: NAT +
AB11: =T11-HLOOKUP(X11,Feuil1!$C$1:$BL$10,2,FALSE) ->  | AC11: =T11-HLOOKUP(X11,Feuil1!$C$1:$BL$10,3,FALSE) ->  | AD11: =T11-HLOOKUP(X11,Feuil1!$C$1:$BL$10,4,FALSE) ->  | AE11: =T11-HLOOKUP(X11,Feuil1!$C$1:$BL$10,5,FALSE) ->  | AF11: =T11-HLOOKUP(X11,Feuil1!$C$1:$BL$10,6,FALSE) ->  | AG11: =T11-HLOOKUP(X11,Feuil1!$C$1:$BL$10,7,FALSE) ->  | AH11: =T11-HLOOKUP(X11,Feuil1!$C$1:$BL$10,8,FALSE) ->  | AI11: =T11-HLOOKUP(X11,Feuil1!$C$1:$BL$10,9,FALSE) ->  | AJ11: =T11-HLOOKUP(X11,Feuil1!$C$1:$BL$10,10,FALSE) -> 
F12: CLASSEMENT : | H12: =IF(V12="","",RANK(V12,$Z$8:$Z$10,0)) -> 3 | S12: Score de l'équipe | V12: =IF(H7="","",IF(H10="",SUM(Y6:Y10),(SUM(Y6:Y10)))) -> 1188.95157 | AB12: =T12-HLOOKUP(X12,Feuil1!$C$1:$BL$10,2,FALSE) ->  | AC12: =T12-HLOOKUP(X12,Feuil1!$C$1:$BL$10,3,FALSE) ->  | AD12: =T12-HLOOKUP(X12,Feuil1!$C$1:$BL$10,4,FALSE) ->  | AE12: =T12-HLOOKUP(X12,Feuil1!$C$1:$BL$10,5,FALSE) ->  | AF12: =T12-HLOOKUP(X12,Feuil1!$C$1:$BL$10,6,FALSE) ->  | AG12: =T12-HLOOKUP(X12,Feuil1!$C$1:$BL$10,7,FALSE) ->  | AH12: =T12-HLOOKUP(X12,Feuil1!$C$1:$BL$10,8,FALSE) ->  | AI12: =T12-HLOOKUP(X12,Feuil1!$C$1:$BL$10,9,FALSE) ->  | AJ12: =T12-HLOOKUP(X12,Feuil1!$C$1:$BL$10,10,FALSE) -> 
E14: ► CLUB :
A15: SEXE | B15: ZONE | C15: REG. | D15: CL. | E15: LICENCE | F15: NOMS | G15: Prénoms | H15: AN | I15: POIDS | J15: CLUB | K15: NAT | L15: 1 | M15: 2 | N15: 3 | O15: ARR | P15: 1 | Q15: 2 | R15: 3 | S15: EP-J | T15: Total | U15: Points | V15: SERIE | X15: Catég | Y15: IWF | AB15: DEB | AC15: DEP + | AD15: REG + | AE15: IRG + | AF15: FED + | AG15: NAT + | AH15: INTB + | AI15: INTA + | AJ15: OLY +
A16: H | H16: 1996 | I16: 77 | J16: =F14 ->  | L16: 80 | O16: =IF(H16="","",IF(MAXA(L16:N16)<=0,0,MAXA(L16:N16))) -> 80 | P16: 100 | S16: =IF(H16="","",IF(MAXA(P16:R16)<=0,0,MAXA(P16:R16))) -> 100 | T16: =IF(I16="","",O16+S16) -> 180 | U16: =T16-I16*2 -> 26 | V16: =IF(H16="","",AQ16) -> DEP + | W16: =IF(AJ16>=0,AJ16,IF(AI16>=0,AI16,IF(AH16>=0,AH16,IF(AG16>=0,AG16,IF(AF16>=0,AF16,IF(AE16>=0,AE16,IF(AD16>=0,AD16,IF(AC16>=0,AC16,AB16)))))))) -> 10 | X16: =IF(I16="","",IF(A16="H",IF(OR(H16="SEN",H16<1997),VLOOKUP(I16,Feuil1!$A$11:$G$29,6),IF(AND(H16>1996,H16<2000),VLOOKUP(I16,Feuil1!$A$11:$G$29,5),IF(AND(H16>1999,H16<2002),VLOOKUP(I16,Feuil1!$A$11:$G$29,4),IF(AND(H16>2001,H16<2004),VLOOKUP(I16,Feuil1!$A$11:$G$29,3),VLOOKUP(I16,Feuil1!$A$11:$G$29,2))))),IF(OR(H16="SEN",H16<1997),VLOOKUP(I16,Feuil1!$G$11:$L$25,6),IF(AND(H16>1996,H16<2000),VLOOKUP(I16,Feuil1!$G$11:$L$25,5),IF(AND(H16>1999,H16<2002),VLOOKUP(I16,Feuil1!$G$11:$L$25,4),IF(AND(H16>2001,H16<2004),VLOOKUP(I16,Feuil1!$G$11:$L$25,3),VLOOKUP(I16,Feuil1!$G$11:$L$25,2))))))) -> S77 | Y16: =IF(I16="","",IF(A16="H",10^(0.794358141*LOG(I16/174.393)^2)*T16,IF(A16="F",10^(0.89726074*LOG(I16/148.026)^2)*T16,""))) -> 226.674729 | AB16: =T16-HLOOKUP(X16,Feuil1!$C$1:$BL$10,2,FALSE) -> 30 | AC16: =T16-HLOOKUP(X16,Feuil1!$C$1:$BL$10,3,FALSE) -> 10 | AD16: =T16-HLOOKUP(X16,Feuil1!$C$1:$BL$10,4,FALSE) -> -10 | AE16: =T16-HLOOKUP(X16,Feuil1!$C$1:$BL$10,5,FALSE) -> -30 | AF16: =T16-HLOOKUP(X16,Feuil1!$C$1:$BL$10,6,FALSE) -> -60 | AG16: =T16-HLOOKUP(X16,Feuil1!$C$1:$BL$10,7,FALSE) -> -85 | AH16: =T16-HLOOKUP(X16,Feuil1!$C$1:$BL$10,8,FALSE) -> -105 | AI16: =T16-HLOOKUP(X16,Feuil1!$C$1:$BL$10,9,FALSE) -> -125 | AJ16: =T16-HLOOKUP(X16,Feuil1!$C$1:$BL$10,10,FALSE) -> -140 | AQ16: =IF(AJ16>=0,$AJ$5,IF(AI16>=0,$AI$5,IF(AH16>=0,$AH$5,IF(AG16>=0,$AG$5,IF(AF16>=0,$AF$5,IF(AE16>=0,$AE$5,IF(AD16>=0,$AD$5,IF(AC16>=0,$AC$5,$AB$5)))))))) -> DEP +
A17: H | H17: 2002 | I17: 85 | J17: =F14 ->  | L17: 100 | O17: =IF(H17="","",IF(MAXA(L17:N17)<=0,0,MAXA(L17:N17))) -> 100 | P17: 125 | S17: =IF(H17="","",IF(MAXA(P17:R17)<=0,0,MAXA(P17:R17))) -> 125 | T17: =IF(I17="","",O17+S17) -> 225 | U17: =T17-I17*2 -> 55 | V17: =IF(H17="","",AQ17) -> INTB + | W17: =IF(AJ17>=0,AJ17,IF(AI17>=0,AI17,IF(AH17>=0,AH17,IF(AG17>=0,AG17,IF(AF17>=0,AF17,IF(AE17>=0,AE17,IF(AD17>=0,AD17,IF(AC17>=0,AC17,AB17)))))))) -> 5 | X17: =IF(I17="","",IF(A17="H",IF(OR(H17="SEN",H17<1997),VLOOKUP(I17,Feuil1!$A$11:$G$29,6),IF(AND(H17>1996,H17<2000),VLOOKUP(I17,Feuil1!$A$11:$G$29,5),IF(AND(H17>1999,H17<2002),VLOOKUP(I17,Feuil1!$A$11:$G$29,4),IF(AND(H17>2001,H17<2004),VLOOKUP(I17,Feuil1!$A$11:$G$29,3),VLOOKUP(I17,Feuil1!$A$11:$G$29,2))))),IF(OR(H17="SEN",H17<1997),VLOOKUP(I17,Feuil1!$G$11:$L$25,6),IF(AND(H17>1996,H17<2000),VLOOKUP(I17,Feuil1!$G$11:$L$25,5),IF(AND(H17>1999,H17<2002),VLOOKUP(I17,Feuil1!$G$11:$L$25,4),IF(AND(H17>2001,H17<2004),VLOOKUP(I17,Feuil1!$G$11:$L$25,3),VLOOKUP(I17,Feuil1!$G$11:$L$25,2))))))) -> C1 85 | Y17: =IF(I17="","",IF(A17="H",10^(0.794358141*LOG(I17/174.393)^2)*T17,IF(A17="F",10^(0.89726074*LOG(I17/148.026)^2)*T17,""))) -> 268.8828559 | AB17: =T17-HLOOKUP(X17,Feuil1!$C$1:$BL$10,2,FALSE) -> 125 | AC17: =T17-HLOOKUP(X17,Feuil1!$C$1:$BL$10,3,FALSE) -> 105 | AD17: =T17-HLOOKUP(X17,Feuil1!$C$1:$BL$10,4,FALSE) -> 85 | AE17: =T17-HLOOKUP(X17,Feuil1!$C$1:$BL$10,5,FALSE) -> 65 | AF17: =T17-HLOOKUP(X17,Feuil1!$C$1:$BL$10,6,FALSE) -> 45 | AG17: =T17-HLOOKUP(X17,Feuil1!$C$1:$BL$10,7,FALSE) -> 25 | AH17: =T17-HLOOKUP(X17,Feuil1!$C$1:$BL$10,8,FALSE) -> 5 | AI17: =T17-HLOOKUP(X17,Feuil1!$C$1:$BL$10,9,FALSE) -> -15 | AJ17: =T17-HLOOKUP(X17,Feuil1!$C$1:$BL$10,10,FALSE) -> -9775 | AQ17: =IF(AJ17>=0,$AJ$5,IF(AI17>=0,$AI$5,IF(AH17>=0,$AH$5,IF(AG17>=0,$AG$5,IF(AF17>=0,$AF$5,IF(AE17>=0,$AE$5,IF(AD17>=0,$AD$5,IF(AC17>=0,$AC$5,$AB$5)))))))) -> INTB +
A18: H | H18: 2000 | I18: 94 | J18: =F14 ->  | L18: 100 | O18: 100 | P18: 110 | S18: 110 | T18: 210 | U18: 22 | V18: FED + | W18: 0 | X18: =IF(I18="","",IF(A18="H",IF(OR(H18="SEN",H18<1997),VLOOKUP(I18,Feuil1!$A$11:$G$29,6),IF(AND(H18>1996,H18<2000),VLOOKUP(I18,Feuil1!$A$11:$G$29,5),IF(AND(H18>1999,H18<2002),VLOOKUP(I18,Feuil1!$A$11:$G$29,4),IF(AND(H18>2001,H18<2004),VLOOKUP(I18,Feuil1!$A$11:$G$29,3),VLOOKUP(I18,Feuil1!$A$11:$G$29,2))))),IF(OR(H18="SEN",H18<1997),VLOOKUP(I18,Feuil1!$G$11:$L$25,6),IF(AND(H18>1996,H18<2000),VLOOKUP(I18,Feuil1!$G$11:$L$25,5),IF(AND(H18>1999,H18<2002),VLOOKUP(I18,Feuil1!$G$11:$L$25,4),IF(AND(H18>2001,H18<2004),VLOOKUP(I18,Feuil1!$G$11:$L$25,3),VLOOKUP(I18,Feuil1!$G$11:$L$25,2))))))) -> C2 94 | Y18: 239.5765027 | AB18: =T18-HLOOKUP(X18,Feuil1!$C$1:$BL$10,2,FALSE) -> 85 | AC18: =T18-HLOOKUP(X18,Feuil1!$C$1:$BL$10,3,FALSE) -> 65 | AD18: =T18-HLOOKUP(X18,Feuil1!$C$1:$BL$10,4,FALSE) -> 45 | AE18: =T18-HLOOKUP(X18,Feuil1!$C$1:$BL$10,5,FALSE) -> 25 | AF18: =T18-HLOOKUP(X18,Feuil1!$C$1:$BL$10,6,FALSE) -> 0 | AG18: =T18-HLOOKUP(X18,Feuil1!$C$1:$BL$10,7,FALSE) -> -15 | AH18: =T18-HLOOKUP(X18,Feuil1!$C$1:$BL$10,8,FALSE) -> -40 | AI18: =T18-HLOOKUP(X18,Feuil1!$C$1:$BL$10,9,FALSE) -> -70 | AJ18: =T18-HLOOKUP(X18,Feuil1!$C$1:$BL$10,10,FALSE) -> -790 | AQ18: FED +
A19: H | H19: 1998 | I19: 105 | J19: =F14 ->  | L19: 110 | O19: 110 | P19: 130 | S19: 130 | T19: 240 | U19: 30 | V19: IRG + | W19: 20 | X19: =IF(I19="","",IF(A19="H",IF(OR(H19="SEN",H19<1997),VLOOKUP(I19,Feuil1!$A$11:$G$29,6),IF(AND(H19>1996,H19<2000),VLOOKUP(I19,Feuil1!$A$11:$G$29,5),IF(AND(H19>1999,H19<2002),VLOOKUP(I19,Feuil1!$A$11:$G$29,4),IF(AND(H19>2001,H19<2004),VLOOKUP(I19,Feuil1!$A$11:$G$29,3),VLOOKUP(I19,Feuil1!$A$11:$G$29,2))))),IF(OR(H19="SEN",H19<1997),VLOOKUP(I19,Feuil1!$G$11:$L$25,6),IF(AND(H19>1996,H19<2000),VLOOKUP(I19,Feuil1!$G$11:$L$25,5),IF(AND(H19>1999,H19<2002),VLOOKUP(I19,Feuil1!$G$11:$L$25,4),IF(AND(H19>2001,H19<2004),VLOOKUP(I19,Feuil1!$G$11:$L$25,3),VLOOKUP(I19,Feuil1!$G$11:$L$25,2))))))) -> J105 | Y19: 262.2871511 | AB19: =T19-HLOOKUP(X19,Feuil1!$C$1:$BL$10,2,FALSE) -> 85 | AC19: =T19-HLOOKUP(X19,Feuil1!$C$1:$BL$10,3,FALSE) -> 65 | AD19: =T19-HLOOKUP(X19,Feuil1!$C$1:$BL$10,4,FALSE) -> 45 | AE19: =T19-HLOOKUP(X19,Feuil1!$C$1:$BL$10,5,FALSE) -> 20 | AF19: =T19-HLOOKUP(X19,Feuil1!$C$1:$BL$10,6,FALSE) -> -5 | AG19: =T19-HLOOKUP(X19,Feuil1!$C$1:$BL$10,7,FALSE) -> -30 | AH19: =T19-HLOOKUP(X19,Feuil1!$C$1:$BL$10,8,FALSE) -> -60 | AI19: =T19-HLOOKUP(X19,Feuil1!$C$1:$BL$10,9,FALSE) -> -85 | AJ19: =T19-HLOOKUP(X19,Feuil1!$C$1:$BL$10,10,FALSE) -> -760 | AQ19: IRG +
A20: H | H20: 2000 | I20: 110 | J20: =F14 ->  | L20: 120 | O20: 120 | P20: 145 | S20: 145 | T20: 265 | U20: 45 | V20: INTB + | W20: 5 | X20: =IF(I20="","",IF(A20="H",IF(OR(H20="SEN",H20<1997),VLOOKUP(I20,Feuil1!$A$11:$G$29,6),IF(AND(H20>1996,H20<2000),VLOOKUP(I20,Feuil1!$A$11:$G$29,5),IF(AND(H20>1999,H20<2002),VLOOKUP(I20,Feuil1!$A$11:$G$29,4),IF(AND(H20>2001,H20<2004),VLOOKUP(I20,Feuil1!$A$11:$G$29,3),VLOOKUP(I20,Feuil1!$A$11:$G$29,2))))),IF(OR(H20="SEN",H20<1997),VLOOKUP(I20,Feuil1!$G$11:$L$25,6),IF(AND(H20>1996,H20<2000),VLOOKUP(I20,Feuil1!$G$11:$L$25,5),IF(AND(H20>1999,H20<2002),VLOOKUP(I20,Feuil1!$G$11:$L$25,4),IF(AND(H20>2001,H20<2004),VLOOKUP(I20,Feuil1!$G$11:$L$25,3),VLOOKUP(I20,Feuil1!$G$11:$L$25,2))))))) -> C2 +94 | Y20: 285.1435439 | AB20: =T20-HLOOKUP(X20,Feuil1!$C$1:$BL$10,2,FALSE) -> 130 | AC20: =T20-HLOOKUP(X20,Feuil1!$C$1:$BL$10,3,FALSE) -> 110 | AD20: =T20-HLOOKUP(X20,Feuil1!$C$1:$BL$10,4,FALSE) -> 90 | AE20: =T20-HLOOKUP(X20,Feuil1!$C$1:$BL$10,5,FALSE) -> 70 | AF20: =T20-HLOOKUP(X20,Feuil1!$C$1:$BL$10,6,FALSE) -> 45 | AG20: =T20-HLOOKUP(X20,Feuil1!$C$1:$BL$10,7,FALSE) -> 30 | AH20: =T20-HLOOKUP(X20,Feuil1!$C$1:$BL$10,8,FALSE) -> 5 | AI20: =T20-HLOOKUP(X20,Feuil1!$C$1:$BL$10,9,FALSE) -> -15 | AJ20: =T20-HLOOKUP(X20,Feuil1!$C$1:$BL$10,10,FALSE) -> -735 | AQ20: INTB +
AB21: =T21-HLOOKUP(X21,Feuil1!$C$1:$BL$10,2,FALSE) ->  | AC21: =T21-HLOOKUP(X21,Feuil1!$C$1:$BL$10,3,FALSE) ->  | AD21: =T21-HLOOKUP(X21,Feuil1!$C$1:$BL$10,4,FALSE) ->  | AE21: =T21-HLOOKUP(X21,Feuil1!$C$1:$BL$10,5,FALSE) ->  | AF21: =T21-HLOOKUP(X21,Feuil1!$C$1:$BL$10,6,FALSE) ->  | AG21: =T21-HLOOKUP(X21,Feuil1!$C$1:$BL$10,7,FALSE) ->  | AH21: =T21-HLOOKUP(X21,Feuil1!$C$1:$BL$10,8,FALSE) ->  | AI21: =T21-HLOOKUP(X21,Feuil1!$C$1:$BL$10,9,FALSE) ->  | AJ21: =T21-HLOOKUP(X21,Feuil1!$C$1:$BL$10,10,FALSE) -> 
F22: CLASSEMENT : | H22: =IF(V22="","",RANK(V22,$Z$8:$Z$10,0)) -> 1 | S22: Score de l'équipe | V22: =IF(H17="","",IF(H20="",SUM(Y16:Y20),(SUM(Y16:Y20)))) -> 1282.564783 | AB22: =T22-HLOOKUP(X22,Feuil1!$C$1:$BL$10,2,FALSE) ->  | AC22: =T22-HLOOKUP(X22,Feuil1!$C$1:$BL$10,3,FALSE) ->  | AD22: =T22-HLOOKUP(X22,Feuil1!$C$1:$BL$10,4,FALSE) ->  | AE22: =T22-HLOOKUP(X22,Feuil1!$C$1:$BL$10,5,FALSE) ->  | AF22: =T22-HLOOKUP(X22,Feuil1!$C$1:$BL$10,6,FALSE) ->  | AG22: =T22-HLOOKUP(X22,Feuil1!$C$1:$BL$10,7,FALSE) ->  | AH22: =T22-HLOOKUP(X22,Feuil1!$C$1:$BL$10,8,FALSE) ->  | AI22: =T22-HLOOKUP(X22,Feuil1!$C$1:$BL$10,9,FALSE) ->  | AJ22: =T22-HLOOKUP(X22,Feuil1!$C$1:$BL$10,10,FALSE) -> 
E24: ► CLUB :
A25: SEXE | B25: ZONE | C25: REG. | D25: CL. | E25: LICENCE | F25: NOMS | G25: Prénoms | H25: AN | I25: POIDS | J25: CLUB | K25: NAT | L25: 1 | M25: 2 | N25: 3 | O25: ARR | P25: 1 | Q25: 2 | R25: 3 | S25: EP-J | T25: Total | U25: Points | V25: SERIE | X25: Catég | Y25: IWF | AB25: DEB | AC25: DEP + | AD25: REG + | AE25: IRG + | AF25: FED + | AG25: NAT + | AH25: INTB + | AI25: INTA + | AJ25: OLY +
A26: H | H26: 1994 | I26: 77 | J26: =F24 ->  | L26: 80 | O26: =IF(H26="","",IF(MAXA(L26:N26)<=0,0,MAXA(L26:N26))) -> 80 | P26: 100 | S26: =IF(H26="","",IF(MAXA(P26:R26)<=0,0,MAXA(P26:R26))) -> 100 | T26: =IF(I26="","",O26+S26) -> 180 | U26: =T26-I26*2 -> 26 | V26: =IF(H26="","",AQ26) -> DEP + | W26: =IF(AJ26>=0,AJ26,IF(AI26>=0,AI26,IF(AH26>=0,AH26,IF(AG26>=0,AG26,IF(AF26>=0,AF26,IF(AE26>=0,AE26,IF(AD26>=0,AD26,IF(AC26>=0,AC26,AB26)))))))) -> 10 | X26: =IF(I26="","",IF(A26="H",IF(OR(H26="SEN",H26<1997),VLOOKUP(I26,Feuil1!$A$11:$G$29,6),IF(AND(H26>1996,H26<2000),VLOOKUP(I26,Feuil1!$A$11:$G$29,5),IF(AND(H26>1999,H26<2002),VLOOKUP(I26,Feuil1!$A$11:$G$29,4),IF(AND(H26>2001,H26<2004),VLOOKUP(I26,Feuil1!$A$11:$G$29,3),VLOOKUP(I26,Feuil1!$A$11:$G$29,2))))),IF(OR(H26="SEN",H26<1997),VLOOKUP(I26,Feuil1!$G$11:$L$25,6),IF(AND(H26>1996,H26<2000),VLOOKUP(I26,Feuil1!$G$11:$L$25,5),IF(AND(H26>1999,H26<2002),VLOOKUP(I26,Feuil1!$G$11:$L$25,4),IF(AND(H26>2001,H26<2004),VLOOKUP(I26,Feuil1!$G$11:$L$25,3),VLOOKUP(I26,Feuil1!$G$11:$L$25,2))))))) -> S77 | Y26: =IF(I26="","",IF(A26="H",10^(0.794358141*LOG(I26/174.393)^2)*T26,IF(A26="F",10^(0.89726074*LOG(I26/148.026)^2)*T26,""))) -> 226.674729 | AB26: =T26-HLOOKUP(X26,Feuil1!$C$1:$BL$10,2,FALSE) -> 30 | AC26: =T26-HLOOKUP(X26,Feuil1!$C$1:$BL$10,3,FALSE) -> 10 | AD26: =T26-HLOOKUP(X26,Feuil1!$C$1:$BL$10,4,FALSE) -> -10 | AE26: =T26-HLOOKUP(X26,Feuil1!$C$1:$BL$10,5,FALSE) -> -30 | AF26: =T26-HLOOKUP(X26,Feuil1!$C$1:$BL$10,6,FALSE) -> -60 | AG26: =T26-HLOOKUP(X26,Feuil1!$C$1:$BL$10,7,FALSE) -> -85 | AH26: =T26-HLOOKUP(X26,Feuil1!$C$1:$BL$10,8,FALSE) -> -105 | AI26: =T26-HLOOKUP(X26,Feuil1!$C$1:$BL$10,9,FALSE) -> -125 | AJ26: =T26-HLOOKUP(X26,Feuil1!$C$1:$BL$10,10,FALSE) -> -140 | AQ26: =IF(AJ26>=0,$AJ$5,IF(AI26>=0,$AI$5,IF(AH26>=0,$AH$5,IF(AG26>=0,$AG$5,IF(AF26>=0,$AF$5,IF(AE26>=0,$AE$5,IF(AD26>=0,$AD$5,IF(AC26>=0,$AC$5,$AB$5)))))))) -> DEP +
A27: H | H27: 1997 | I27: 85 | J27: =F24 ->  | L27: 90 | O27: =IF(H27="","",IF(MAXA(L27:N27)<=0,0,MAXA(L27:N27))) -> 90 | P27: 125 | S27: =IF(H27="","",IF(MAXA(P27:R27)<=0,0,MAXA(P27:R27))) -> 125 | T27: =IF(I27="","",O27+S27) -> 215 | U27: =T27-I27*2 -> 45 | V27: =IF(H27="","",AQ27) -> IRG + | W27: =IF(AJ27>=0,AJ27,IF(AI27>=0,AI27,IF(AH27>=0,AH27,IF(AG27>=0,AG27,IF(AF27>=0,AF27,IF(AE27>=0,AE27,IF(AD27>=0,AD27,IF(AC27>=0,AC27,AB27)))))))) -> 10 | X27: =IF(I27="","",IF(A27="H",IF(OR(H27="SEN",H27<1997),VLOOKUP(I27,Feuil1!$A$11:$G$29,6),IF(AND(H27>1996,H27<2000),VLOOKUP(I27,Feuil1!$A$11:$G$29,5),IF(AND(H27>1999,H27<2002),VLOOKUP(I27,Feuil1!$A$11:$G$29,4),IF(AND(H27>2001,H27<2004),VLOOKUP(I27,Feuil1!$A$11:$G$29,3),VLOOKUP(I27,Feuil1!$A$11:$G$29,2))))),IF(OR(H27="SEN",H27<1997),VLOOKUP(I27,Feuil1!$G$11:$L$25,6),IF(AND(H27>1996,H27<2000),VLOOKUP(I27,Feuil1!$G$11:$L$25,5),IF(AND(H27>1999,H27<2002),VLOOKUP(I27,Feuil1!$G$11:$L$25,4),IF(AND(H27>2001,H27<2004),VLOOKUP(I27,Feuil1!$G$11:$L$25,3),VLOOKUP(I27,Feuil1!$G$11:$L$25,2))))))) -> J85 | Y27: =IF(I27="","",IF(A27="H",10^(0.794358141*LOG(I27/174.393)^2)*T27,IF(A27="F",10^(0.89726074*LOG(I27/148.026)^2)*T27,""))) -> 256.9325068 | AB27: =T27-HLOOKUP(X27,Feuil1!$C$1:$BL$10,2,FALSE) -> 70 | AC27: =T27-HLOOKUP(X27,Feuil1!$C$1:$BL$10,3,FALSE) -> 50 | AD27: =T27-HLOOKUP(X27,Feuil1!$C$1:$BL$10,4,FALSE) -> 30 | AE27: =T27-HLOOKUP(X27,Feuil1!$C$1:$BL$10,5,FALSE) -> 10 | AF27: =T27-HLOOKUP(X27,Feuil1!$C$1:$BL$10,6,FALSE) -> -10 | AG27: =T27-HLOOKUP(X27,Feuil1!$C$1:$BL$10,7,FALSE) -> -35 | AH27: =T27-HLOOKUP(X27,Feuil1!$C$1:$BL$10,8,FALSE) -> -65 | AI27: =T27-HLOOKUP(X27,Feuil1!$C$1:$BL$10,9,FALSE) -> -85 | AJ27: =T27-HLOOKUP(X27,Feuil1!$C$1:$BL$10,10,FALSE) -> -785 | AQ27: =IF(AJ27>=0,$AJ$5,IF(AI27>=0,$AI$5,IF(AH27>=0,$AH$5,IF(AG27>=0,$AG$5,IF(AF27>=0,$AF$5,IF(AE27>=0,$AE$5,IF(AD27>=0,$AD$5,IF(AC27>=0,$AC$5,$AB$5)))))))) -> IRG +
A28: H | H28: 2000 | I28: 94 | J28: =F24 ->  | L28: 100 | O28: 100 | P28: 110 | S28: 110 | T28: 210 | U28: 22 | V28: FED + | W28: 0 | X28: =IF(I28="","",IF(A28="H",IF(OR(H28="SEN",H28<1997),VLOOKUP(I28,Feuil1!$A$11:$G$29,6),IF(AND(H28>1996,H28<2000),VLOOKUP(I28,Feuil1!$A$11:$G$29,5),IF(AND(H28>1999,H28<2002),VLOOKUP(I28,Feuil1!$A$11:$G$29,4),IF(AND(H28>2001,H28<2004),VLOOKUP(I28,Feuil1!$A$11:$G$29,3),VLOOKUP(I28,Feuil1!$A$11:$G$29,2))))),IF(OR(H28="SEN",H28<1997),VLOOKUP(I28,Feuil1!$G$11:$L$25,6),IF(AND(H28>1996,H28<2000),VLOOKUP(I28,Feuil1!$G$11:$L$25,5),IF(AND(H28>1999,H28<2002),VLOOKUP(I28,Feuil1!$G$11:$L$25,4),IF(AND(H28>2001,H28<2004),VLOOKUP(I28,Feuil1!$G$11:$L$25,3),VLOOKUP(I28,Feuil1!$G$11:$L$25,2))))))) -> C2 94 | Y28: 239.5765027 | AB28: =T28-HLOOKUP(X28,Feuil1!$C$1:$BL$10,2,FALSE) -> 85 | AC28: =T28-HLOOKUP(X28,Feuil1!$C$1:$BL$10,3,FALSE) -> 65 | AD28: =T28-HLOOKUP(X28,Feuil1!$C$1:$BL$10,4,FALSE) -> 45 | AE28: =T28-HLOOKUP(X28,Feuil1!$C$1:$BL$10,5,FALSE) -> 25 | AF28: =T28-HLOOKUP(X28,Feuil1!$C$1:$BL$10,6,FALSE) -> 0 | AG28: =T28-HLOOKUP(X28,Feuil1!$C$1:$BL$10,7,FALSE) -> -15 | AH28: =T28-HLOOKUP(X28,Feuil1!$C$1:$BL$10,8,FALSE) -> -40 | AI28: =T28-HLOOKUP(X28,Feuil1!$C$1:$BL$10,9,FALSE) -> -70 | AJ28: =T28-HLOOKUP(X28,Feuil1!$C$1:$BL$10,10,FALSE) -> -790 | AQ28: FED +
A29: H | H29: 2003 | I29: 105 | J29: =F24 ->  | L29: 110 | O29: 110 | P29: 130 | S29: 130 | T29: 240 | U29: 30 | V29: INTB + | W29: 5 | X29: =IF(I29="","",IF(A29="H",IF(OR(H29="SEN",H29<1997),VLOOKUP(I29,Feuil1!$A$11:$G$29,6),IF(AND(H29>1996,H29<2000),VLOOKUP(I29,Feuil1!$A$11:$G$29,5),IF(AND(H29>1999,H29<2002),VLOOKUP(I29,Feuil1!$A$11:$G$29,4),IF(AND(H29>2001,H29<2004),VLOOKUP(I29,Feuil1!$A$11:$G$29,3),VLOOKUP(I29,Feuil1!$A$11:$G$29,2))))),IF(OR(H29="SEN",H29<1997),VLOOKUP(I29,Feuil1!$G$11:$L$25,6),IF(AND(H29>1996,H29<2000),VLOOKUP(I29,Feuil1!$G$11:$L$25,5),IF(AND(H29>1999,H29<2002),VLOOKUP(I29,Feuil1!$G$11:$L$25,4),IF(AND(H29>2001,H29<2004),VLOOKUP(I29,Feuil1!$G$11:$L$25,3),VLOOKUP(I29,Feuil1!$G$11:$L$25,2))))))) -> C1 +94 | Y29: 262.2871511 | AB29: =T29-HLOOKUP(X29,Feuil1!$C$1:$BL$10,2,FALSE) -> 120 | AC29: =T29-HLOOKUP(X29,Feuil1!$C$1:$BL$10,3,FALSE) -> 100 | AD29: =T29-HLOOKUP(X29,Feuil1!$C$1:$BL$10,4,FALSE) -> 85 | AE29: =T29-HLOOKUP(X29,Feuil1!$C$1:$BL$10,5,FALSE) -> 65 | AF29: =T29-HLOOKUP(X29,Feuil1!$C$1:$BL$10,6,FALSE) -> 45 | AG29: =T29-HLOOKUP(X29,Feuil1!$C$1:$BL$10,7,FALSE) -> 20 | AH29: =T29-HLOOKUP(X29,Feuil1!$C$1:$BL$10,8,FALSE) -> 5 | AI29: =T29-HLOOKUP(X29,Feuil1!$C$1:$BL$10,9,FALSE) -> -20 | AJ29: =T29-HLOOKUP(X29,Feuil1!$C$1:$BL$10,10,FALSE) -> -760 | AQ29: INTB +
A30: H | H30: 1996 | I30: 110 | J30: =F24 ->  | L30: 120 | O30: 120 | P30: 145 | S30: 145 | T30: 265 | U30: 45 | V30: IRG + | W30: 15 | X30: =IF(I30="","",IF(A30="H",IF(OR(H30="SEN",H30<1997),VLOOKUP(I30,Feuil1!$A$11:$G$29,6),IF(AND(H30>1996,H30<2000),VLOOKUP(I30,Feuil1!$A$11:$G$29,5),IF(AND(H30>1999,H30<2002),VLOOKUP(I30,Feuil1!$A$11:$G$29,4),IF(AND(H30>2001,H30<2004),VLOOKUP(I30,Feuil1!$A$11:$G$29,3),VLOOKUP(I30,Feuil1!$A$11:$G$29,2))))),IF(OR(H30="SEN",H30<1997),VLOOKUP(I30,Feuil1!$G$11:$L$25,6),IF(AND(H30>1996,H30<2000),VLOOKUP(I30,Feuil1!$G$11:$L$25,5),IF(AND(H30>1999,H30<2002),VLOOKUP(I30,Feuil1!$G$11:$L$25,4),IF(AND(H30>2001,H30<2004),VLOOKUP(I30,Feuil1!$G$11:$L$25,3),VLOOKUP(I30,Feuil1!$G$11:$L$25,2))))))) -> S+105 | Y30: 285.1435439 | AB30: =T30-HLOOKUP(X30,Feuil1!$C$1:$BL$10,2,FALSE) -> 80 | AC30: =T30-HLOOKUP(X30,Feuil1!$C$1:$BL$10,3,FALSE) -> 60 | AD30: =T30-HLOOKUP(X30,Feuil1!$C$1:$BL$10,4,FALSE) -> 40 | AE30: =T30-HLOOKUP(X30,Feuil1!$C$1:$BL$10,5,FALSE) -> 15 | AF30: =T30-HLOOKUP(X30,Feuil1!$C$1:$BL$10,6,FALSE) -> -15 | AG30: =T30-HLOOKUP(X30,Feuil1!$C$1:$BL$10,7,FALSE) -> -45 | AH30: =T30-HLOOKUP(X30,Feuil1!$C$1:$BL$10,8,FALSE) -> -65 | AI30: =T30-HLOOKUP(X30,Feuil1!$C$1:$BL$10,9,FALSE) -> -90 | AJ30: =T30-HLOOKUP(X30,Feuil1!$C$1:$BL$10,10,FALSE) -> -110 | AQ30: IRG +
AB31: =T31-HLOOKUP(X31,Feuil1!$C$1:$BL$10,2,FALSE) ->  | AC31: =T31-HLOOKUP(X31,Feuil1!$C$1:$BL$10,3,FALSE) ->  | AD31: =T31-HLOOKUP(X31,Feuil1!$C$1:$BL$10,4,FALSE) ->  | AE31: =T31-HLOOKUP(X31,Feuil1!$C$1:$BL$10,5,FALSE) ->  | AF31: =T31-HLOOKUP(X31,Feuil1!$C$1:$BL$10,6,FALSE) ->  | AG31: =T31-HLOOKUP(X31,Feuil1!$C$1:$BL$10,7,FALSE) ->  | AH31: =T31-HLOOKUP(X31,Feuil1!$C$1:$BL$10,8,FALSE) ->  | AI31: =T31-HLOOKUP(X31,Feuil1!$C$1:$BL$10,9,FALSE) ->  | AJ31: =T31-HLOOKUP(X31,Feuil1!$C$1:$BL$10,10,FALSE) -> 
F32: CLASSEMENT : | H32: =IF(V32="","",RANK(V32,$Z$8:$Z$10,0)) -> 2 | S32: Score de l'équipe | V32: =IF(H27="","",IF(H30="",SUM(Y26:Y30),(SUM(Y26:Y30)))) -> 1270.614434 | AB32: =T32-HLOOKUP(X32,Feuil1!$C$1:$BL$10,2,FALSE) ->  | AC32: =T32-HLOOKUP(X32,Feuil1!$C$1:$BL$10,3,FALSE) ->  | AD32: =T32-HLOOKUP(X32,Feuil1!$C$1:$BL$10,4,FALSE) ->  | AE32: =T32-HLOOKUP(X32,Feuil1!$C$1:$BL$10,5,FALSE) ->  | AF32: =T32-HLOOKUP(X32,Feuil1!$C$1:$BL$10,6,FALSE) ->  | AG32: =T32-HLOOKUP(X32,Feuil1!$C$1:$BL$10,7,FALSE) ->  | AH32: =T32-HLOOKUP(X32,Feuil1!$C$1:$BL$10,8,FALSE) ->  | AI32: =T32-HLOOKUP(X32,Feuil1!$C$1:$BL$10,9,FALSE) ->  | AJ32: =T32-HLOOKUP(X32,Feuil1!$C$1:$BL$10,10,FALSE) -> 
AB33: =T33-HLOOKUP(X33,Feuil1!$C$1:$BJ$10,2,FALSE) ->  | AC33: =T33-HLOOKUP(X33,Feuil1!$C$1:$BJ$10,3,FALSE) ->  | AD33: =T33-HLOOKUP(X33,Feuil1!$C$1:$BJ$10,4,FALSE) ->  | AE33: =T33-HLOOKUP(X33,Feuil1!$C$1:$BJ$10,5,FALSE) ->  | AF33: =T33-HLOOKUP(X33,Feuil1!$C$1:$BJ$10,6,FALSE) ->  | AG33: =T33-HLOOKUP(X33,Feuil1!$C$1:$BJ$10,7,FALSE) ->  | AH33: =T33-HLOOKUP(X33,Feuil1!$C$1:$BJ$10,8,FALSE) ->  | AI33: =T33-HLOOKUP(X33,Feuil1!$C$1:$BJ$10,9,FALSE) ->  | AJ33: =T33-HLOOKUP(X33,Feuil1!$C$1:$BJ$10,10,FALSE) ->  | AQ33: =IF(AJ33>=0,$AJ$5,IF(AI33>=0,$AI$5,IF(AH33>=0,$AH$5,IF(AG33>=0,$AG$5,IF(AF33>=0,$AF$5,IF(AE33>=0,$AE$5,IF(AD33>=0,$AD$5,IF(AC33>=0,$AC$5,$AB$5)))))))) -> 
F34: Secrétaire de Compétition | I34: Arbitre 2 | L34: Arbitre 1 | Q34: Arbitre 3 | AB34: =T34-HLOOKUP(X34,Feuil1!$C$1:$BJ$10,2,FALSE) ->  | AC34: =T34-HLOOKUP(X34,Feuil1!$C$1:$BJ$10,3,FALSE) ->  | AD34: =T34-HLOOKUP(X34,Feuil1!$C$1:$BJ$10,4,FALSE) ->  | AE34: =T34-HLOOKUP(X34,Feuil1!$C$1:$BJ$10,5,FALSE) ->  | AF34: =T34-HLOOKUP(X34,Feuil1!$C$1:$BJ$10,6,FALSE) ->  | AG34: =T34-HLOOKUP(X34,Feuil1!$C$1:$BJ$10,7,FALSE) ->  | AH34: =T34-HLOOKUP(X34,Feuil1!$C$1:$BJ$10,8,FALSE) ->  | AI34: =T34-HLOOKUP(X34,Feuil1!$C$1:$BJ$10,9,FALSE) ->  | AJ34: =T34-HLOOKUP(X34,Feuil1!$C$1:$BJ$10,10,FALSE) -> 
E35: Nom : | H35: Noms : | AB35: =T35-HLOOKUP(X35,Feuil1!$C$1:$BJ$10,2,FALSE) ->  | AC35: =T35-HLOOKUP(X35,Feuil1!$C$1:$BJ$10,3,FALSE) ->  | AD35: =T35-HLOOKUP(X35,Feuil1!$C$1:$BJ$10,4,FALSE) ->  | AE35: =T35-HLOOKUP(X35,Feuil1!$C$1:$BJ$10,5,FALSE) ->  | AF35: =T35-HLOOKUP(X35,Feuil1!$C$1:$BJ$10,6,FALSE) ->  | AG35: =T35-HLOOKUP(X35,Feuil1!$C$1:$BJ$10,7,FALSE) ->  | AH35: =T35-HLOOKUP(X35,Feuil1!$C$1:$BJ$10,8,FALSE) ->  | AI35: =T35-HLOOKUP(X35,Feuil1!$C$1:$BJ$10,9,FALSE) ->  | AJ35: =T35-HLOOKUP(X35,Feuil1!$C$1:$BJ$10,10,FALSE) -> 
E36: Signature : | H36: Signatures : | AB36: =T36-HLOOKUP(X36,Feuil1!$C$1:$BJ$10,2,FALSE) ->  | AC36: =T36-HLOOKUP(X36,Feuil1!$C$1:$BJ$10,3,FALSE) ->  | AD36: =T36-HLOOKUP(X36,Feuil1!$C$1:$BJ$10,4,FALSE) ->  | AE36: =T36-HLOOKUP(X36,Feuil1!$C$1:$BJ$10,5,FALSE) ->  | AF36: =T36-HLOOKUP(X36,Feuil1!$C$1:$BJ$10,6,FALSE) ->  | AG36: =T36-HLOOKUP(X36,Feuil1!$C$1:$BJ$10,7,FALSE) ->  | AH36: =T36-HLOOKUP(X36,Feuil1!$C$1:$BJ$10,8,FALSE) ->  | AI36: =T36-HLOOKUP(X36,Feuil1!$C$1:$BJ$10,9,FALSE) ->  | AJ36: =T36-HLOOKUP(X36,Feuil1!$C$1:$BJ$10,10,FALSE) -> 
AB429: J77 | AC429: J85 | AD429: J94 | AE429: J105 | AF429: J+105 | AH429: J56 | AI429: J62 | AJ429: J69 | AK429: J77 | AL429: J85 | AM429: J94 | AN429: J105 | AO429: J+105 | AQ429: S56 | AR429: S62 | AS429: S69 | AT429: S77 | AU429: S85 | AV429: S94 | AW429: S105 | AX429: S+105
AB430: 145 | AC430: 160 | AD430: 170 | AE430: 180 | AF430: 190 | AH430: 100 | AI430: 115 | AJ430: 130 | AK430: 145 | AL430: 160 | AM430: 170 | AN430: 180 | AO430: 190 | AQ430: 115 | AR430: 135 | AS430: 150 | AT430: 165 | AU430: 180 | AV430: 190 | AW430: 200 | AX430: 210
AB431: 165 | AC431: 180 | AD431: 190 | AE431: 200 | AF431: 210 | AH431: 115 | AI431: 135 | AJ431: 150 | AK431: 165 | AL431: 180 | AM431: 190 | AN431: 200 | AO431: 210 | AQ431: 130 | AR431: 150 | AS431: 165 | AT431: 185 | AU431: 200 | AV431: 210 | AW431: 220 | AX431: 230
AB432: 185 | AC432: 200 | AD432: 210 | AE432: 220 | AF432: 230 | AH432: 130 | AI432: 150 | AJ432: 165 | AK432: 185 | AL432: 200 | AM432: 210 | AN432: 220 | AO432: 230 | AQ432: 145 | AR432: 165 | AS432: 180 | AT432: 200 | AU432: 220 | AV432: 230 | AW432: 240 | AX432: 250
AB433: 200 | AC433: 220 | AD433: 230 | AE433: 240 | AF433: 250 | AH433: 145 | AI433: 165 | AJ433: 180 | AK433: 200 | AL433: 220 | AM433: 230 | AN433: 240 | AO433: 250 | AQ433: 175 | AR433: 195 | AS433: 215 | AT433: 235 | AU433: 250 | AV433: 260 | AW433: 275 | AX433: 280
AB434: 235 | AC434: 250 | AD434: 260 | AE434: 275 | AF434: 280 | AH434: 175 | AI434: 195 | AJ434: 215 | AK434: 235 | AL434: 250 | AM434: 260 | AN434: 275 | AO434: 280 | AQ434: 210 | AR434: 230 | AS434: 250 | AT434: 270 | AU434: 290 | AV434: 300 | AW434: 310 | AX434: 325
AB435: 270 | AC435: 290 | AD435: 300 | AE435: 310 | AF435: 325 | AH435: 210 | AI435: 230 | AJ435: 250 | AK435: 270 | AL435: 290 | AM435: 300 | AN435: 310 | AO435: 325 | AQ435: 230 | AR435: 255 | AS435: 275 | AT435: 300 | AU435: 315 | AV435: 335 | AW435: 345 | AX435: 355
AB436: 320 | AC436: 335 | AD436: 355 | AE436: 370 | AF436: 380 | AH436: 245 | AI436: 270 | AJ436: 295 | AK436: 320 | AL436: 335 | AM436: 355 | AN436: 370 | AO436: 380 | AQ436: 245 | AR436: 270 | AS436: 295 | AT436: 320 | AU436: 335 | AV436: 355 | AW436: 370 | AX436: 380
